[Event "ITT 1st Parada Jamundi 2022"]
[Site "Jamundi Valle"]
[Date "2022.12.09"]
[Round "7.13"]
[White "Pazos Gambarrotti, Plinio"]
[Black "Mogollon Tobar, Nicolle Julieth"]
[Result "1/2-1/2"]
[ECO "A52"]
[WhiteElo "2083"]
[BlackElo "1840"]
[Annotator "TA"]
[PlyCount "92"]
[EventDate "2022.12.05"]
[EventType "swiss"]
[EventCountry "COL"]
[SourceTitle "playchess.com"]
[Source "ChessBase"]
[SourceQuality "1"]
[TimeControl "5400+30"]

{[%evp 12,92,72,60,81,35,31,18,20,6,45,17,18,31,23,0,0,-15,98,98,104,19,14,-13,-14,-22,-16,-24,0,1,137,133,194,0,0,0,0,0,0,-12,-13,-18,77,-13,-14,-13,-16,-18,-14,-99,-11,-35,-18,-16,-10,-15,-8,-8,-9,-12,-1,-8,0,-1,0,0,0,0,0,0,0,0,0,0,0,0,0,0,0,0,0,0,0]} 1. d4 {[%emt 0:24:26]} Nf6 {[%emt 0:00:00]} 2. c4 {[%emt 0:00:19]} e5 {[%emt 0:00:00]} 3. dxe5 {[%emt 0:00:05]} Ng4 {[%emt 0:00:04]} 4. Bf4 {[%emt 0:00:04]} g5 {[%emt 0:00:18]} 5. Bg3 {[%emt 0:00:04]} Bg7 {[%emt 0:00:31]} 6. Nf3 {[%emt 0:00:06]} Nc6 {[%emt 0:00:24]} 7. h4 {[%emt 0:00:21]} h6 {[%emt 0:02:43] A52: Budapest Gambit.} 8. Nbd2 {[%emt 0:02:16]} ({White should play} 8. Qc2 $16) 8... Ngxe5 {[%emt 0:01:08]} 9. Nxe5 {[%emt 0:00:25]} Nxe5 {[%emt 0:00:25]} 10. e3 {[%emt 0:00:20] [#]} Qe7 $146 {[%emt 0:02:12]} ({Predecessor:} 10... d6 11. hxg5 hxg5 12. Rxh8+ Bxh8 13. Qh5 Bg7 14. Ne4 Bf5 15. Qxg5 Qxg5 16. Nxg5 Bf6 {1-0 (59) Tirto (2418)-Yap,K (2337) Manila 2007}) 11. hxg5 {[%emt 0:00:25]} hxg5 {[%emt 0:01:10]} 12. Rxh8+ {[%emt 0:01:47]} Bxh8 {[%emt 0:00:07]} 13. Qh5 {[%emt 0:00:13] Prevents d6.} Bg7 {[%emt 0:03:55]} 14. Qh7 {[%emt 0:04:22]} Bf8 {[%emt 0:07:02]} (14... Kf8 $1 $11 {keeps the balance.}) 15. O-O-O $16 {[%emt 0:01:07] Black must now prevent Ne4.} d6 {[%emt 0:01:48]} 16. f4 {[%emt 0:01:54]} (16. Ne4 $16) 16... Ng4 $11 {[%emt 0:10:33]} 17. fxg5 {[%emt 0:01:22]} Qxg5 {[%emt 0:01:40]} 18. Bf4 {[%emt 0:01:30]} Qf5 {[%emt 0:03:27]} 19. Qh4 {[%emt 0:00:42]} Be6 {[%emt 0:04:04]} 20. Nf3 {[%emt 0:00:23]} Qc5 {[%emt 0:07:05]} (20... Ne5 $11) 21. Nd4 $1 $16 {[%emt 0:01:27] Strongly threatening Nxe6.} Bxc4 {[%emt 0:05:25]} (21... Bd7 $16) 22. Kb1 $2 {[%emt 0:00:25]} (22. b4 $1 $18 {[%cal Rb4c5]} Qxb4 23. Nc2 (23. Qxg4 $2 {loses.} Bxf1 24. Nc2 Qb5 $19)) 22... Bxf1 {[%emt 0:02:56]} 23. Rxf1 {[%emt 0:00:51]} Ne5 {[%emt 0:02:46]} 24. Rc1 {[%emt 0:03:14]} Qb6 {[%emt 0:04:03]} 25. Bxe5 {[%emt 0:00:33]} dxe5 {[%emt 0:00:08]} 26. Qe4 {[%emt 0:00:03]} Bd6 {[%emt 0:03:20] [#]} (26... O-O-O $11 27. Qf5+ Kb8 28. Qxe5 Qg6+ 29. Nf5 Bd6) 27. Nf3 {[%emt 0:01:53] White is more active.} (27. Ne6 $1 $16) 27... O-O-O $11 {[%emt 0:04:28]} 28. Nxe5 {[%emt 0:00:53]} Bxe5 {[%emt 0:00:13]} 29. Qxe5 {[%emt 0:00:02][%mdl 4096] Endgame KQR-KQR} Qg6+ {[%emt 0:00:10]} (29... Qd6 {simplifies} 30. Qf5+ Qd7 31. Qxd7+ Rxd7 32. Rf1 Kd8) 30. Ka1 {[%emt 0:00:14] [#]} (30. e4 $11 {remains equal.} Qd6 31. Qf5+ Rd7 32. a3) 30... c6 {[%emt 0:00:34]} (30... Qxg2 $2 31. Qxc7#) (30... Qc2 $1 $17 {[%cal Rc2c1]} 31. Rb1 Qxg2) 31. Qf4 {[%emt 0:01:26]} Qxg2 {[%emt 0:01:35][%cal Og2c2]} 32. Qxf7 {[%emt 0:00:18] The position is equal.} Qe4 {[%emt 0:00:30]} 33. Qf4 {[%emt 0:00:35]} Re8 {[%emt 0:00:35]} 34. Qxe4 {[%emt 0:00:26]} Rxe4 {[%emt 0:00:04] KR-KR} 35. Re1 {[%emt 0:00:05]} Kd7 {[%emt 0:01:03]} 36. Kb1 {[%emt 0:00:11]} Kd6 {[%emt 0:02:05]} 37. Kc2 {[%emt 0:00:05]} Re7 {[%emt 0:02:29]} 38. Kd3 {[%emt 0:00:23]} Ke5 {[%emt 0:00:12]} 39. Rh1 {[%emt 0:00:10]} Rd7+ {[%emt 0:00:21]} 40. Ke2 {[%emt 0:00:02]} Rg7 {[%emt 0:00:26]} 41. Rh5+ {[%emt 0:00:10]} Ke4 {[%emt 0:00:14] And now ...Rg2+ would win.} 42. Rh4+ {[%emt 0:00:02]} Ke5 {[%emt 0:00:16]} 43. Kd3 {[%emt 0:00:33]} Rg2 {[%emt 0:01:25]} 44. Rh5+ {[%emt 0:00:10]} Ke6 {[%emt 0:00:42]} 45. Kc3 {[%emt 0:00:48]} Re2 {[%emt 0:00:18]} 46. Rh7 {[%emt 0:00:15]} b6 {[%emt 0:28:36] Weighted Error Value: White=0.20 (precise) /Black=0.24 (precise)} 1/2-1/2

[Event "ITT 1st Parada Jamundi 2022"]
[Site "Jamundi Valle"]
[Date "2022.12.09"]
[Round "7.14"]
[White "Renteria, Rolando"]
[Black "Navia Alvarez, Edwin Adrian"]
[Result "0-1"]
[ECO "C00"]
[WhiteElo "2046"]
[BlackElo "2023"]
[Annotator "TA"]
[PlyCount "98"]
[EventDate "2022.12.05"]
[EventType "swiss"]
[EventCountry "COL"]
[SourceTitle "playchess.com"]
[Source "ChessBase"]
[SourceQuality "1"]
[TimeControl "5400+30"]

{[%evp 22,98,-18,-26,-22,-42,-39,-52,-37,-57,0,-44,-49,-77,69,-79,-45,-42,0,0,0,0,0,0,0,14,14,5,14,0,0,11,68,63,462,459,464,449,467,468,459,461,447,454,440,22,27,33,41,40,557,557,563,553,542,535,1427,1388,1472,1416,1039,897,1316,0,0,-576,29991,937,739,723,4132,-871,-791,-968,-956,-950,-967,-29991,-29992]} 1. Nf3 {[%emt 0:03:22]} d5 {[%emt 0:00:37]} 2. g3 {[%emt 0:00:05]} Nf6 {[%emt 0:00:56]} 3. Bg2 {[%emt 0:00:05]} e6 {[%emt 0:02:38]} 4. O-O {[%emt 0:00:10]} Be7 {[%emt 0:00:07]} 5. d3 {[%emt 0:00:09]} O-O {[%emt 0:00:09]} 6. Nbd2 {[%emt 0:00:06]} c5 {[%emt 0:00:51]} 7. e4 {[%emt 0:00:17]} Nc6 {[%emt 0:00:06]} 8. e5 {[%emt 0:00:15]} Nd7 {[%emt 0:00:16]} 9. Re1 {[%emt 0:00:08]} b5 {[%emt 0:00:39]} 10. Nf1 {[%emt 0:00:17]} Bb7 {[%emt 0:01:15]} 11. h4 {[%emt 0:00:11]} Qc7 {[%emt 0:00:07]} 12. Bf4 {[%emt 0:00:09]} Rfc8 {[%emt 0:00:04] C00: French: Unusual White 2nd moves.} 13. h5 {[%emt 0:00:36]} h6 {[%emt 0:00:18]} 14. N1h2 {[%emt 0:05:00]} a5 {[%emt 0:00:48] Black is slightly better.} 15. Ng4 {[%emt 0:02:38][%cal Of4h6]} Bf8 {[%emt 0:00:26]} (15... Nd4 $15) 16. Qd2 {[%emt 0:01:19][%cal Rf4h6]} Qd8 {[%emt 0:00:38]} (16... Nd4 {seems wilder.} 17. Nh4 Qd8 18. Rac1 Be7) 17. a4 {[%emt 0:01:27] [#]} Ba6 $146 {[%emt 0:02:58]} (17... b4 $17) ({Predecessor:} 17... bxa4 18. Rxa4 c4 19. d4 Nb4 20. Bf1 Bc6 21. Raa1 Bb5 22. Ne3 a4 23. g4 Be7 {0-1 (59) Bartel,M (2192)-Kiolbasa,O (2410) Bydgoszcz 2022}) 18. Ngh2 {[%emt 0:02:01]} (18. axb5 $14 {stays ahead.} Bxb5 19. Qd1) 18... Rab8 {[%emt 0:07:43]} 19. axb5 {[%emt 0:00:45]} Bxb5 {[%emt 0:03:36]} 20. g4 {[%emt 0:01:14]} a4 {[%emt 0:02:16]} 21. g5 {[%emt 0:00:30]} hxg5 {[%emt 0:00:07]} 22. Bxg5 {[%emt 0:02:38]} Be7 {[%emt 0:03:27][%cal Od7e5]} 23. Bf4 {[%emt 0:03:04]} Nf8 {[%emt 0:04:53]} 24. Kh1 {[%emt 0:00:17]} Nh7 {[%emt 0:01:33]} 25. Rg1 {[%emt 0:00:09]} Kh8 {[%emt 0:00:49]} 26. Bh3 {[%emt 0:01:58]} Rb7 {[%emt 0:04:55]} ({Better is} 26... Qa5 $11) 27. Rg3 $14 {[%emt 0:00:18] And now Rag1 would win.} Rcb8 $2 {[%emt 0:13:16][%mdl 8192]} ({Black should play} 27... Qa5 $14) 28. Rag1 $18 {[%emt 1:15:22]} Qf8 {[%emt 0:02:11]} 29. Rxg7 {[%emt 0:00:00]} Qxg7 {[%emt 0:01:57]} 30. Rxg7 {[%emt 0:00:00]} Kxg7 {[%emt 0:00:03]} 31. Bh6+ {[%emt 0:00:00]} Kh8 {[%emt 0:04:28]} 32. Qf4 {[%emt 0:00:00]} Rg8 {[%emt 0:20:06] [#]} 33. Qxf7 $2 {[%emt 0:00:00]} (33. Ng4 $1 $18 {[%cal Rg4f6]}) 33... Nd8 $11 {[%emt 0:01:42] Chess con chili.} 34. Qf4 {[%emt 0:00:00] Ng4 is the strong threat.} Be8 {[%emt 0:03:13]} 35. Ng4 {[%emt 0:00:00] Black must now prevent Nf6.} (35. Qc1 $5 {[%cal Rh3g4]}) 35... Rxb2 $2 {[%emt 0:05:06][%mdl 8192]} (35... Nf7 $1 $14) 36. Nf6 $18 {[%emt 0:00:00]} Rb4 {[%emt 0:04:10]} 37. d4 {[%emt 0:00:00]} Bxf6 {[%emt 0:06:35]} 38. exf6 {[%emt 0:00:00]} a3 {[%emt 0:00:21] Strongly threatening ...a2.} 39. Bg7+ {[%emt 0:00:00]} Rxg7 {[%emt 0:00:08]} 40. fxg7+ {[%emt 0:00:00]} Kg8 {[%emt 0:02:07]} 41. Qd6 {[%emt 0:00:00] Intending h6 and mate.} a2 {[%emt 0:00:34]} 42. h6 $2 {[%emt 0:00:00]} (42. Qxd8 $18 a1=Q+ 43. Kg2) 42... a1=Q+ $11 {[%emt 0:00:09]} (42... a1=B 43. Bxe6+ Nf7 44. Bxf7+ Bxf7 45. Qd8+) 43. Kh2 $2 {[%emt 0:00:00][%mdl 8192]} (43. Kg2 $11 {and White stays safe.} Qa8 44. Ng5) 43... Qa4 $4 {[%emt 0:01:18][%mdl 8192] [#]} 44. Ne5 {[%emt 0:00:00]} (44. Qxd8 $142 Rb6 45. Ne5 c4 46. Qe7 Qd7 47. Nxd7 Bxd7 48. Qd8+ Be8 49. Qxe8+ Nf8 50. gxf8=Q+ Kh7 51. Qh8#) 44... Nf7 $18 {[%emt 0:02:11]} 45. Bxe6 {[%emt 0:00:00] Ng4 would kill now.} Rb7 {[%emt 0:00:14]} 46. Ng6 $4 {[%emt 0:00:00][%mdl 8192]} ({Less strong is} 46. Qxc5 Qa7 47. Nxf7 Qxc5 48. Nd8+ Bf7 49. dxc5 Bxe6 50. Nxb7 Nf6 $14) (46. Qd8 $18 Nf8 47. Bxd5 Qxd4 48. gxf8=Q+ (48. Qxe8 Qxf2+ 49. Kh3 Qe3+ 50. Kg2 Qd2+ 51. Kg3 Qe3+ 52. Kg2 Qd2+ 53. Kg3 Qe3+ 54. Kg2 $11) 48... Kxf8 49. Ng6+ (49. Bxf7 Qxd8 50. h7 Qh4+ 51. Kg2 Bxf7 52. f3 Qxh7 53. Kg3 Qxc2 54. Kh3 Rb1 55. Nd7+ Kg7 56. Kg4 Rg1+ 57. Kf4 Qd2+ 58. Kf5 Rg5+ 59. Ke4 Bg6#) 49... Kg8 50. Qxe8+ Kh7 51. Nf8+ (51. Bxb7 Qxf2+ 52. Kh1 Qf1+ 53. Kh2 Qf2+ 54. Bg2 Kxg6 $11) 51... Kxh6 52. Qc6+ (52. Bxb7 Qxf2+ 53. Kh1 Qf1+ 54. Kh2 Qf2+ 55. Kh3 Ng5+ 56. Kg4 Qg1+ 57. Kh4 Qh2+ 58. Kg4 Qg1+ 59. Kf5 Qf2+ 60. Kg4 Qg1+ $11) 52... Kg7 53. Ne6+ (53. Qxb7 Qxf2+ 54. Kh1 Qf1+ 55. Kh2 Qf2+ 56. Kh3 Qe3+ 57. Kh4 Qf4+ 58. Kh3 Qe3+ 59. Kh4 Qf4+ 60. Kh3 Qe3+ $11) 53... Kh7 54. Nxd4 (54. Be4+ Qxe4 55. Qxe4+ Kh6 56. Qxb7 Kg6 57. Qe7 Ne5 58. Qg5+ Kf7 59. Qxe5 Ke7)) 46... Qxd4 $19 {[%emt 0:00:38]} (46... cxd4 $2 {leads to mate.} 47. Qf8+ (47. Qxd5 $2 {loses.} Qb4 $19) 47... Nxf8 48. gxf8=Q+ Kh7 49. Qg7#) 47. Qf8+ {[%emt 0:00:00]} Nxf8 {[%emt 0:00:03]} 48. gxf8=Q+ {[%emt 0:00:00]} Kh7 {[%emt 0:00:01]} 49. Bf5 {[%emt 0:00:00]} Qxf2+ {[%emt 0:02:17] Never resign too early!   Weighted Error Value: White=1.01/Black=0.70} 0-1

[Event "ITT 1st Parada Jamundi 2022"]
[Site "Jamundi Valle"]
[Date "2022.12.09"]
[Round "7.15"]
[White "Cortes Castro, Jhonny"]
[Black "Vacca, Leonardo"]
[Result "0-1"]
[ECO "B21"]
[WhiteElo "1954"]
[BlackElo "2041"]
[Annotator "TA"]
[PlyCount "58"]
[EventDate "2022.12.05"]
[EventType "swiss"]
[EventCountry "COL"]
[SourceTitle "playchess.com"]
[Source "ChessBase"]
[SourceQuality "1"]
[TimeControl "5400+30"]

{[%evp 9,58,-33,-33,-38,-31,-33,-18,-17,-20,-32,-20,-26,27,20,27,6,16,0,14,-104,-97,-123,-157,-226,-83,-233,-224,-199,-177,-207,-182,-29984,-29985,-29985,-29985,-29985,-29986,-29985,-6308,-6016,-5936,-2312,-1928,-29990,-29991,-29995,-29995,-29995,-29995,-29998,-29999]} 1. e4 {[%emt 0:07:14]} c5 {[%emt 0:17:26]} 2. f4 {[%emt 0:00:48]} d5 {[%emt 0:01:39]} 3. e5 {[%emt 0:00:01]} Nc6 {[%emt 0:00:13]} 4. Nf3 {[%emt 0:00:02]} Bg4 {[%emt 0:00:57]} 5. Bb5 {[%emt 0:00:09]} Qb6 {[%emt 0:01:30]} 6. Bxc6+ {[%emt 0:01:44] B21: Sicilian: 2 f4 and Morra Gambit.} Qxc6 {[%emt 0:00:13]} 7. h3 {[%emt 0:00:03] [#]} Bd7 $146 {[%emt 0:02:41]} ({Predecessor:} 7... Bxf3 8. Qxf3 e6 9. c4 Ne7 10. d3 O-O-O 11. Nc3 Nf5 12. O-O h5 13. a4 Be7 {½-½ (42) Hubeny,P (1763)-Malinovsky,P (2076) Prague 2021}) 8. d4 {[%emt 0:00:08] The position is equal.} e6 {[%emt 0:02:33]} 9. Be3 {[%emt 0:00:09]} Qb6 {[%emt 0:03:18]} 10. Qc1 {[%emt 0:06:00]} Bb5 {[%emt 0:00:28]} (10... Nh6 $142) 11. Nc3 {[%emt 0:00:16][%cal Of4f5]} Ba6 {[%emt 0:00:56]} 12. Kf2 {[%emt 0:00:32]} Qc7 {[%emt 0:05:01]} 13. Rd1 {[%emt 0:02:35]} (13. dxc5 {feels hotter.} Bxc5 14. Bxc5 Qxc5+ 15. Qe3) 13... h5 {[%emt 0:07:13]} 14. g4 {[%emt 0:01:36]} (14. dxc5 $11 Bxc5 15. Bxc5 Qxc5+ 16. Kg3 (16. Qe3 Qxe3+ 17. Kxe3 Ne7 $11)) 14... Nh6 {[%emt 0:00:52]} 15. Kg3 {[%emt 0:00:02]} f6 {[%emt 0:05:46]} 16. dxc5 {[%emt 0:00:10]} (16. gxh5 $2 Nf5+ 17. Kh2 Qf7 $19) (16. g5 $17 Nf5+ 17. Kh2) 16... Qf7 {[%emt 0:01:22]} (16... hxg4 $19 {has better winning chances.} 17. hxg4 Qf7) 17. f5 {[%emt 0:03:37] This costs White the game.} (17. g5 $17 {was forced.} fxg5 18. Nxg5) 17... hxg4 $19 {[%emt 0:00:39]} 18. hxg4 {[%emt 0:00:01] [#]} Nxg4 {[%emt 0:46:43][%mdl 576] Remove Defender} 19. Kxg4 {[%emt 1:14:53]} fxe5 {[%emt 0:00:00] The board is on fire.} ({Inferior is} 19... Qh5+ 20. Kg3 Qh3+ 21. Kf2 Qxf5 22. Rh1 Rxh1 23. Qxh1 $17) 20. fxe6 {[%emt 0:00:00]} (20. Kg3 $19 Qxf5 21. Rh1 Rxh1 22. Qxh1) 20... Qxe6+ {[%emt 0:00:00]} 21. Kg3 {[%emt 0:00:00]} Rh3+ {[%emt 0:00:00]} 22. Kf2 {[%emt 0:00:00]} Qg4 {[%emt 0:00:00][%csl Gh3][%cal Rg4g3]} 23. Rg1 {[%emt 0:00:00]} Rxf3+ {[%emt 0:00:00]} (23... Qxf3+ $142 24. Ke1 d4 25. Bf2 dxc3 26. Qe3 {[#]} Qd5 $1 27. Bg3 cxb2 28. Qxe5+ Qxe5+ 29. Bxe5 bxa1=Q+ 30. Bxa1 Bxc5 31. Kd2 Bxg1 32. Kc1 Be3+ 33. Kb2 Bd4+ 34. c3 Bxc3+ 35. Kc1 Bxa1 36. a4 Rc8+ 37. Kd2 Bd4 38. Ke1 Rc1+ 39. Kd2 Be3#) 24. Ke1 {[%emt 0:00:00]} Qh4+ {[%emt 0:00:00]} 25. Kd1 {[%emt 0:00:00]} d4 {[%emt 0:00:00] ( -> ...Qh5)} 26. Bg5 {[%emt 0:00:00]} Qh5 {[%emt 0:00:00] Black mates.} 27. Ke1 {[%emt 0:00:00]} dxc3 {[%emt 0:00:00]} 28. Qd1 {[%emt 0:00:00]} Bxc5 {[%emt 0:00:00][%csl Gf3][%cal Rc5f2]} 29. Qd5 {[%emt 0:00:00]} Rf1+ {[%emt 0:05:30] Weighted Error Value: White=0.63/Black=0.36} 0-1

[Event "ITT 1st Parada Jamundi 2022"]
[Site "Jamundi Valle"]
[Date "2022.12.09"]
[Round "7.16"]
[White "Simancas Maradei, Miguel Alejand"]
[Black "Borrero, Alexander"]
[Result "0-1"]
[ECO "D35"]
[WhiteElo "2027"]
[BlackElo "1988"]
[Annotator "TA"]
[PlyCount "112"]
[EventDate "2022.12.05"]
[EventType "swiss"]
[EventCountry "COL"]
[SourceTitle "playchess.com"]
[Source "ChessBase"]
[SourceQuality "1"]
[TimeControl "5400+30"]

{[%evp 13,112,-7,7,14,6,-5,14,0,17,-5,26,0,0,-16,0,-65,-66,-135,-141,-126,-128,-133,-144,-126,-116,-143,-64,-68,-21,-126,-9,-109,-33,-60,-75,-78,27,16,57,-142,-115,-91,-26,-159,-87,-132,-126,-154,-150,-133,-94,-102,-28,-108,0,-305,-301,-306,-298,-297,-52,-177,-177,-177,-158,-156,-160,-408,-408,-407,-386,-385,-389,-492,-491,-575,-575,-526,-520,-564,-568,-566,-560,-556,-547,-498,-498,-504,-302,-559,-550,-529,-514,-966,-964,-1173,-1089,-29969,-5925,-5060,-4690]} 1. d4 {[%emt 0:00:04]} d5 {[%emt 0:04:51]} 2. c4 {[%emt 0:00:08]} e6 {[%emt 0:00:04]} 3. Nf3 {[%emt 0:00:31]} Nf6 {[%emt 0:00:17]} 4. Nc3 {[%emt 0:00:07]} Be7 {[%emt 0:01:12]} 5. cxd5 {[%emt 0:00:06]} exd5 {[%emt 0:00:05]} 6. Bf4 {[%emt 0:00:04]} c6 {[%emt 0:00:22]} 7. e3 {[%emt 0:00:06]} O-O {[%emt 0:00:09]} 8. h3 {[%emt 0:00:05] D35: Queen's Gambit Declined: Exchange Variation.} Bf5 {[%emt 0:00:29] Prevents Qc2.} 9. Bd3 {[%emt 0:00:02] [#]} Be4 $146 {[%emt 0:03:47]} ({Predecessor:} 9... Bxd3 10. Qxd3 Nbd7 11. O-O Re8 12. Rab1 a5 13. Qc2 Nb6 14. b3 Bd6 15. Ne5 Qe7 16. Nd3 Bxf4 17. Nxf4 Ne4 18. Nxe4 Qxe4 19. Qxe4 Rxe4 20. Nd3 Re7 21. Nc5 {½-½ (33) Fressinet,L (2677)-Gustafsson,J (2646) Oberhof 2011}) 10. O-O {[%emt 0:00:55] The position is equal.} Nbd7 {[%emt 0:00:13]} 11. Bh2 {[%emt 0:11:43]} Qb6 {[%emt 0:04:00]} 12. a3 {[%emt 0:09:31]} Bxf3 {[%emt 0:06:20]} 13. gxf3 {[%emt 0:00:08]} c5 {[%emt 0:00:58]} (13... Qxb2 $2 14. Na4 $18) 14. Be5 {[%emt 0:16:21]} (14. dxc5 $11 Nxc5 15. b4 Nxd3 16. Qxd3) 14... Qe6 $15 {[%emt 0:02:16]} 15. Kh2 {[%emt 0:07:07]} (15. Bh2 $15) 15... Nxe5 $17 {[%emt 0:01:42]} 16. dxe5 {[%emt 0:00:02]} Qxe5+ {[%emt 0:00:05]} 17. f4 {[%emt 0:52:00]} Qe6 18. Qf3 Rfe8 19. Rg1 Bf8 (19... Rad8 $17 20. Rac1 g6) 20. Rg5 $15 {[%cal Rc3d5]} Red8 (20... d4 $15 21. exd4 cxd4) 21. Rag1 {[#]} (21. Nxd5 $11 Nxd5 22. Bc4) 21... g6 (21... Qc6 $1 $17 {...d4 is the strong threat.} 22. Rd1 h6 23. Rxd5 Nxd5 24. Nxd5 Kh8) 22. Bb1 (22. Nxd5 $11 {remains equal.} Rxd5 23. Bc4) 22... Bg7 (22... Bh6 $17 23. Re5 Qc6) 23. f5 Qd6+ 24. Kh1 {[%cal Rf5g6]} h6 (24... Qf8 $17) 25. R5g2 $11 {[%mdl 1024] White has compensation.} g5 26. Ne2 $2 (26. h4 $1 $14 Kf8 27. hxg5 hxg5 28. Rxg5) 26... Qe5 27. b4 {[%emt 0:00:00]} b6 {[%emt 0:05:54] Prevents h4.} (27... cxb4 $17 28. axb4 Rac8) 28. Ng3 {[%emt 0:03:13]} (28. h4 $1 $11 g4 29. Rxg4 Nxg4 30. Qxg4) 28... d4 {[%emt 0:31:16] Black is more active.} ({Better is} 28... Kf8 29. h4 g4) 29. Ne4 {[%emt 0:01:07] [#]} Nxe4 $1 {[%emt 0:01:01]} 30. Bxe4 {[%emt 0:00:02]} Rac8 $36 {[%emt 0:00:13][%mdl 2048] White is under strong pressure.} 31. h4 {[%emt 0:00:25]} f6 {[%emt 0:00:40]} 32. hxg5 {[%emt 0:00:10]} hxg5 {[%emt 0:00:31]} (32... fxg5 $17 {White must now prevent ...cxb4.} 33. bxc5 Rxc5 34. exd4 Rxd4) 33. Bb1 {[%emt 0:02:17]} (33. Rd1 $11 {keeps the balance.}) 33... d3 {[%emt 0:01:35]} (33... dxe3 $17 {And now ...Rd4 would win.} 34. bxc5 bxc5 35. Qxe3 Qxe3 36. fxe3 Bf8 37. Ba2+ Kg7) 34. Rg4 {[%emt 0:00:09][%mdl 8192] Inhibits Rd4.} (34. bxc5 $11 bxc5 35. Ba2+ Kf8 36. Qg4) 34... c4 $19 {[%emt 0:03:04]} 35. Re4 {[%emt 0:00:01]} Qc7 {[%emt 0:01:53]} 36. Rd1 {[%emt 0:00:34]} Re8 $2 {[%emt 0:03:08]} (36... Qc6 $19 {Hoping for ...Kf8.} 37. Kg2 Kf8) 37. Kg2 {[%emt 0:00:20] White does not recover from this.} (37. Rxe8+ $15 Rxe8 38. Ba2) 37... Rxe4 {[%emt 0:00:27]} 38. Qxe4 {[%emt 0:00:01]} Qc6 {[%emt 0:00:11]} 39. Qxc6 {[%emt 0:00:24]} Rxc6 {[%emt 0:00:04][%cal Bc8c6,Bc6c7,Bc7h7][%mdl 32]} 40. Bxd3 $2 {[%emt 0:00:02]} (40. Rc1 $17 {was worth a try.}) 40... cxd3 {[%emt 0:00:16]} 41. Rxd3 $17 {[%emt 0:00:01][%mdl 4096] Endgame KRB-KR} Rc7 {[%emt 0:00:34] Against Rd7} 42. Kf3 {[%emt 0:00:15]} Kf7 {[%emt 0:00:22]} 43. a4 {[%emt 0:01:08]} Bf8 {[%emt 0:00:14]} 44. b5 {[%emt 0:01:28]} Ke8 {[%emt 0:00:45]} 45. Rd4 {[%emt 0:00:12]} Rh7 {[%emt 0:01:24]} 46. Rc4 {[%emt 0:00:59]} Kd7 {[%emt 0:01:12]} 47. Rc6 {[%emt 0:00:22]} Bd6 {[%emt 0:00:56]} 48. a5 {[%emt 0:00:08]} bxa5 {[%emt 0:02:18][%cal Bb6a5,Ba5a4,Ba4a3][%mdl 32]} 49. Ra6 {[%emt 0:00:01]} Bc5 {[%emt 0:01:36]} ({But not} 49... Rh3+ $2 50. Ke4 $19) 50. Rxf6 {[%emt 0:00:19]} Rg7 {[%emt 0:02:34] Strongly threatening ...Bd6.} 51. Kg4 $2 {[%emt 0:00:42]} (51. Rc6 {keeps fighting.} g4+ 52. Kg2) 51... Bd6 $19 {[%emt 0:00:45]} 52. Rh6 {[%emt 0:00:55]} a4 {[%emt 0:00:25]} 53. f6 {[%emt 0:00:16] Inhibits a3.} (53. e4 $142 Re7 54. f3) 53... Rf7 {[%emt 0:00:24] aiming for ...a3.} 54. Kf5 {[%emt 0:00:01]} Be7 {[%emt 0:02:01][%cal Of7f6] ( -> ...Rxf6+!)} 55. Ke5 {[%emt 0:02:46] [#]} Bxf6+ $1 {[%emt 0:00:30][%mdl 512]} 56. Kd5 {[%emt 0:00:01]} (56. Ke4 a3) 56... a3 {[%emt 0:25:27] Weighted Error Value: White=0.59/Black=0.37} 0-1